fUSD/lending_fUSD_20240201
["ID","MTS","AMOUNT","RATE_DAILY","PERIOD"]
[313116285,1706765433369,-500.0,0.00032876,2]
[313116286,1706765433378,-500.0,0.00032876,2]
[313116287,1706765433387,-962.18,0.00032876,2]
[313116288,1706765433396,-910.41,0.00032876,2]
[313116289,1706765433406,-987.91,0.00032876,2]
[313116290,1706765433416,-500.0,0.00032876,2]
[313116291,1706765433425,-974.51,0.00032876,2]
[313116292,1706765433435,-577.53,0.00032876,2]
[313116293,1706765433444,-500.0,0.00032876,2]
[313116294,1706765433454,-500.0,0.00032876,2]
[313116295,1706765433463,-500.0,0.00032876,2]
[313116296,1706765433472,-500.0,0.00032876,2]
[313116297,1706765433481,-500.0,0.00032876,2]
[313116298,1706765433493,-500.0,0.00032876,2]
[313116299,1706765433503,-500.0,0.00032876,2]
[313116300,1706765433511,-535.44,0.00032876,2]
[313116301,1706765433520,-500.0,0.00032876,2]
[313116302,1706765433529,-1099.38,0.00032876,2]
[313116303,1706765433538,-546.73702577,0.00032876,2]
[313116304,1706765433547,-500.0,0.00032876,2]
[313116305,1706765433556,-1994.23,0.00032876,2]
[313116306,1706765433565,-1213.64,0.00032876,2]
[313116307,1706765433574,-500.0,0.00032876,2]
[313116308,1706765433583,-500.0,0.00032876,2]
[313116309,1706765433593,-536.87,0.00032876,2]
[313116310,1706765433602,-500.0,0.00032876,2]
[313116311,1706765433611,-500.0,0.00032876,2]
[313116312,1706765433620,-500.0,0.00032876,2]
[313116313,1706765433629,-540.77,0.00032876,2]
[313116314,1706765433639,-500.0,0.00032876,2]
[313116315,1706765433648,-573.53,0.00032876,2]
[313116316,1706765433657,-1423.25,0.00032876,2]
[313116317,1706765433667,-500.0,0.00032876,2]
[313116318,1706765433676,-507.87,0.00032876,2]
[313116319,1706765433686,-500.0,0.00032876,2]
[313116320,1706765433695,-513.0710692,0.00032876,2]
[313116321,1706765433704,-500.0,0.00032876,2]
[313116322,1706765433713,-703.04,0.00032876,2]
[313116323,1706765433722,-500.0,0.00032876,2]
[313116324,1706765433731,-648.87,0.00032876,2]
[313116325,1706765433742,-1345.19,0.00032876,2]
[313116326,1706765433751,-914.14,0.00032876,2]
[313116327,1706765433761,-515.00358927,0.00032876,2]
[313116328,1706765433770,-500.0,0.00032876,2]
[313116329,1706765433779,-500.0,0.00032876,2]
[313116330,1706765433788,-500.0,0.00032876,2]
[313116331,1706765433797,-586.48,0.00032876,2]
[313116332,1706765433807,-592.9,0.00032876,2]
[313116333,1706765433816,-500.0,0.00032876,2]
[313116334,1706765433826,-597.55,0.00032876,2]
[313116335,1706765433834,-744.0,0.00032876,2]
[313116336,1706765433844,-500.0,0.00032876,2]
[313116337,1706765433853,-828.31,0.00032876,2]
[313116338,1706765433862,-500.0,0.00032876,2]
[313116339,1706765433871,-1102.43,0.00032876,2]
[313116340,1706765433880,-636.41,0.00032876,2]
[313116341,1706765433889,-744.53,0.00032876,5]
[313116342,1706765433898,-500.0,0.00032876,2]
[313116343,1706765433907,-500.0,0.00032876,2]
[313116344,1706765433916,-15629.66,0.00032876,2]
[313116345,1706765433925,-1240.14,0.00032876,2]
[313116346,1706765433935,-500.0,0.00032876,2]
[313116347,1706765433945,-500.0,0.00032876,2]
[313116348,1706765433953,-500.0,0.00032876,2]
[313116349,1706765433962,-500.0,0.00032876,2]
[313116350,1706765433971,-153.692,0.00032876,2]
[313116351,1706765433980,-500.0,0.00032876,2]
[313116352,1706765433991,-665.68,0.00032876,2]
[313116353,1706765434000,-656.42,0.00032876,2]
[313116354,1706765434010,-999.9,0.00032876,2]
[313116355,1706765434019,-925.77,0.00032876,2]
[313116356,1706765434029,-1119.8,0.00032876,2]
[313116357,1706765434038,-500.0,0.00032876,2]
[313116358,1706765434047,-1292.06,0.00032876,2]
[313116359,1706765434056,-500.0,0.00032876,2]
[313116360,1706765434065,-500.0,0.00032876,2]
[313116361,1706765434074,-500.0,0.00032891,2]
[313116362,1706765434083,-629.27,0.00032891,2]
[313116363,1706765434093,-500.0,0.00032891,2]
[313116364,1706765434102,-1033.05,0.00032891,7]
[313116365,1706765434112,-500.0,0.00032891,2]
[313116366,1706765434122,-500.0,0.00032891,2]
[313116367,1706765434131,-500.0,0.00032891,2]
[313116368,1706765434142,-337.16174964,0.00032891,2]
[313116369,1706765434154,-500.0,0.00032891,2]
[313116370,1706765434163,-500.0,0.00032891,2]
[313116371,1706765434172,-500.0,0.00032891,2]
[313116372,1706765434182,-500.0,0.00032891,2]
[313116373,1706765434191,-500.0,0.00032891,2]
[313116374,1706765434200,-500.0,0.00032891,2]
[313116375,1706765434209,-500.0,0.00032891,2]
[313116376,1706765434218,-500.0,0.00032891,2]
[313116377,1706765434229,-500.0,0.00032891,2]
[313116378,1706765434239,-500.0,0.00032891,2]
[313116379,1706765434248,-500.0,0.00032891,2]
[313116380,1706765434257,-500.0,0.00032891,2]
[313116381,1706765434267,-500.0,0.00032891,2]
[313116382,1706765434276,-500.0,0.00032891,2]
[313116383,1706765434285,-500.0,0.00032891,2]
[313116384,1706765434295,-500.0,0.00032891,2]
[313116385,1706765434304,-500.0,0.00032891,2]
[313116386,1706765434313,-500.0,0.00032891,2]
[313116387,1706765434322,-500.0,0.00032891,2]
[313116388,1706765434331,-500.0,0.00032891,2]
[313116389,1706765434341,-500.0,0.00032891,2]
[313116390,1706765434350,-500.0,0.00032891,2]
[313116391,1706765434358,-427.22800297,0.00032891,2]
[313116392,1706765434368,-500.0,0.00032891,2]
[313116393,1706765434377,-500.0,0.00032891,2]
[313116394,1706765434387,-500.0,0.00032891,2]
[313116395,1706765434396,-519.65,0.00032891,2]
[313116396,1706765434405,-500.0,0.00032891,2]
[313116397,1706765434415,-1214.82,0.00032891,2]
[313116398,1706765434424,-500.0,0.00032891,2]
[313116399,1706765434433,-500.0,0.00032891,2]
[313116400,1706765434442,-500.0,0.00032891,2]
[313116401,1706765434451,-512.3,0.00032891,2]
[313116402,1706765434460,-500.0,0.00032891,2]
[313116403,1706765434470,-500.0,0.00032891,2]
[313116404,1706765434479,-500.0,0.00032891,2]
[313116405,1706765434489,-500.0,0.00032891,2]
[313116406,1706765434499,-500.0,0.00032891,2]
[313116407,1706765434508,-500.0,0.00032891,2]
[313116408,1706765434517,-500.0,0.00032891,2]
[313116409,1706765434527,-2357.69,0.00032891,2]
[313116410,1706765434535,-500.0,0.00032891,2]
[313116411,1706765434544,-232.41617919,0.00032891,2]
[313116412,1706765434554,-500.0,0.00032891,2]
[313116413,1706765434563,-500.0,0.00032891,2]
[313116414,1706765434572,-519.29,0.00032891,2]
[313116415,1706765434581,-500.0,0.00032891,2]
[313116416,1706765434591,-500.0,0.00032891,2]
[313116417,1706765434601,-500.0,0.00032891,2]
[313116418,1706765434610,-562.78,0.00032891,2]
[313116419,1706765434619,-500.0,0.00032891,2]
[313116420,1706765434628,-500.0,0.00032891,2]
[313116421,1706765434638,-524.84,0.00032891,2]
[313116422,1706765434809,-500.0,0.00032891,2]
[313116423,1706765434819,-500.0,0.00032891,2]
[313116424,1706765434829,-1000.0,0.00032891,7]
[313116425,1706765434839,-500.0,0.00032891,2]
[313116426,1706765434849,-500.0,0.00032891,2]
[313116427,1706765434859,-500.0,0.00032891,2]
[313116428,1706765434868,-1000.0,0.00032891,7]
[313116429,1706765434877,-500.0,0.00032891,2]
[313116430,1706765434886,-500.0,0.00032891,2]
[313116431,1706765434895,-500.0,0.00032891,2]
[313116432,1706765434904,-500.0,0.00032891,2]
[313116433,1706765434913,-500.0,0.00032891,2]
[313116434,1706765434922,-500.0,0.00032891,2]
[313116435,1706765434932,-500.0,0.00032891,2]
[313116436,1706765434942,-500.0,0.00032891,2]
[313116437,1706765434950,-500.0,0.00032891,2]
[313116438,1706765434960,-1757.55,0.00032891,5]
[313116439,1706765434969,-500.0,0.00032891,2]
[313116440,1706765434978,-500.0,0.00032891,2]
[313116441,1706765434988,-698.57,0.00032891,2]
[313116442,1706765434997,-689.27,0.00032891,2]
[313116443,1706765435006,-500.0,0.00032891,2]
[313116444,1706765435015,-508.92,0.00032891,2]
[313116445,1706765435025,-537.02,0.00032891,2]
[313116446,1706765435034,-613.56,0.00032891,2]
[313116447,1706765435044,-500.0,0.00032891,2]
[313116448,1706765435053,-500.0,0.00032891,2]
[313116449,1706765435063,-500.0,0.00032891,2]
[313116450,1706765435072,-269.27,0.00032898,2]
[313116451,1706765435081,-3982.31544621,0.00032928,2]
[313116452,1706765435091,-3982.31544621,0.00032991,2]
[313116453,1706765435100,-5000.0,0.00033,15]
[313116454,1706765435109,-550.0,0.00033,3]
[313116455,1706765435119,-3982.31544621,0.00033054,2]
[313116456,1706765435128,-200.0,0.00033073,5]
[313116457,1706765435138,-218.2209941,0.00033079,2]
[313116458,1706765435152,-322.08847437,0.00033079,6]
[313116459,1706765435161,-3982.31544621,0.00033117,2]
[313116460,1706765435170,-50000.0,0.00033157,10]
[313116461,1706765435180,-50000.0,0.00033157,10]
[313116462,1706765435190,-3982.31544621,0.0003318,2]
[313116463,1706765435199,-3982.31544621,0.00033243,2]
[313116464,1706765435209,-218.22099409,0.00033277,2]
[313116465,1706765435218,-3982.31544621,0.00033305,2]
[313116466,1706765435228,-100000.0,0.00033324,2]
[313116467,1706765435239,-446.7859,0.00033324,3]
[313116468,1706765435250,-7532.5259,0.00033324,2]
[313116469,1706765435260,-5000.0,0.00033324,3]
[313116470,1706765435269,-3982.31544621,0.00033368,2]
[313116471,1706765435278,-322.08847437,0.00033383,6]
[313116472,1706765435288,-800.0,0.00033391,2]
[313116473,1706765435298,-1000.0,0.000334,2]
[313116474,1706765435308,-168.52594762,0.00033421,2]
[313116475,1706765435318,-252.98751996,0.00033423,4]
[313116476,1706765435327,-500.0,0.00033423,2]
[313116477,1706765435337,-803.55,0.00033424,2]
[313116478,1706765435347,-1449.78,0.00033424,2]
[313116479,1706765435356,-906.08,0.00033424,2]
[313116480,1706765435365,-500.0,0.00033424,2]
[313116481,1706765435375,-500.0,0.00033424,2]
[313116482,1706765435384,-500.0,0.00033424,2]
[313116483,1706765435394,-774.1,0.00033424,2]
[313116484,1706765435403,-500.0,0.00033424,2]
[313116485,1706765435412,-500.0,0.00033424,2]
[313116486,1706765435422,-529.70486808,0.00033424,2]
[313116487,1706765435431,-500.0,0.00033424,2]
[313116488,1706765435440,-500.0,0.00033424,2]
[313116489,1706765435449,-500.0,0.00033424,2]
[313116490,1706765435458,-845.88,0.00033424,2]
[313116491,1706765435468,-500.0,0.00033424,2]
[313116492,1706765435477,-500.0,0.00033424,2]
[313116493,1706765435487,-500.0,0.00033424,2]
[313116494,1706765435497,-500.0,0.00033424,2]
[313116495,1706765435506,-500.0,0.00033424,2]
[313116496,1706765435515,-500.0,0.00033424,2]
[313116497,1706765435525,-500.0,0.00033424,2]
[313116498,1706765435534,-500.0,0.00033424,2]
[313116499,1706765435543,-1098.7,0.00033424,2]
[313116500,1706765435553,-1000.0,0.00033424,21]
[313116501,1706765435562,-500.0,0.00033424,2]
[313116502,1706765435571,-500.0,0.00033424,2]
[313116503,1706765435581,-500.0,0.00033424,2]
[313116504,1706765435590,-500.0,0.00033424,2]
[313116505,1706765435599,-514.92,0.00033424,2]
[313116506,1706765435609,-500.0,0.00033424,2]
[313116507,1706765435619,-1057.98,0.00033424,2]
[313116508,1706765435628,-500.0,0.00033424,2]
[313116509,1706765435638,-500.0,0.00033424,2]
[313116510,1706765435647,-682.13,0.00033424,2]
[313116511,1706765435657,-564.62,0.00033424,2]
[313116512,1706765435667,-2139.79,0.00033424,2]
[313116513,1706765435677,-500.0,0.00033424,2]
[313116514,1706765435686,-500.0,0.00033424,2]
[313116515,1706765435697,-1031.5,0.00033424,2]
[313116516,1706765435707,-2748.77,0.00033424,2]
[313116517,1706765435717,-894.75,0.00033424,2]
[313116518,1706765435726,-500.0,0.00033424,10]
[313116519,1706765435736,-1117.5,0.00033424,2]
[313116520,1706765435746,-500.0,0.00033424,2]
[313116521,1706765435756,-592.76,0.00033424,2]
[313116522,1706765435765,-845.59,0.00033424,2]
[313116523,1706765435775,-500.0,0.00033424,2]
[313116524,1706765435784,-500.0,0.00033424,2]
[313116525,1706765435793,-500.0,0.00033424,2]
[313116526,1706765435803,-4359.8,0.00033424,2]
[313116527,1706765435812,-1171.77,0.00033424,2]
[313116528,1706765435822,-500.0,0.00033424,2]
[313116529,1706765435831,-500.0,0.00033424,2]
[313116530,1706765435841,-2453.24,0.00033424,2]
[313116531,1706765435850,-500.0,0.00033424,2]
[313116532,1706765435860,-500.0,0.00033424,2]
[313116533,1706765435869,-589.6,0.00033424,2]
[313116534,1706765435879,-500.0,0.00033424,2]
[313116535,1706765435888,-673.0,0.00033424,2]
[313116536,1706765435898,-500.0,0.00033424,2]
[313116537,1706765435908,-687.49,0.00033424,2]
[313116538,1706765435916,-500.0,0.00033424,2]
[313116539,1706765435926,-500.0,0.00033424,2]
[313116540,1706765435936,-500.0,0.00033424,2]
[313116541,1706765435946,-500.0,0.00033424,2]
[313116542,1706765435955,-690.56,0.00033424,2]
[313116543,1706765435964,-1003.88,0.00033424,2]
[313116544,1706765435973,-2369.51,0.00033424,2]
[313116545,1706765435982,-500.0,0.00033424,2]
[313116546,1706765435992,-1330.57,0.00033424,2]
[313116547,1706765436002,-500.0,0.00033424,2]
[313116548,1706765436012,-500.0,0.00033424,2]
[313116549,1706765436021,-871.06,0.00033424,2]
[313116550,1706765436030,-500.0,0.00033424,2]
[313116551,1706765436039,-500.0,0.00033424,2]
[313116552,1706765436049,-962.18,0.00033424,2]
[313116553,1706765436058,-910.41,0.00033424,2]
[313116554,1706765436067,-987.91,0.00033424,2]
[313116555,1706765436077,-500.0,0.00033424,2]
[313116556,1706765436086,-974.51,0.00033424,2]
[313116557,1706765436095,-577.53,0.00033424,2]
[313116558,1706765436104,-500.0,0.00033424,2]
[313116559,1706765436113,-500.0,0.00033424,2]
[313116560,1706765436123,-500.0,0.00033424,2]
[313116561,1706765436132,-500.0,0.00033424,2]
[313116562,1706765436145,-500.0,0.00033424,2]
[313116563,1706765436154,-500.0,0.00033424,2]
[313116564,1706765436163,-500.0,0.00033424,2]
[313116565,1706765436173,-535.44,0.00033424,2]
[313116566,1706765436183,-500.0,0.00033424,2]
[313116567,1706765436193,-1099.38,0.00033424,2]
[313116568,1706765436202,-500.0,0.00033424,2]
[313116569,1706765436211,-1994.23,0.00033424,2]
[313116570,1706765436222,-1213.64,0.00033424,2]
[313116571,1706765436231,-500.0,0.00033424,2]
[313116572,1706765436242,-536.87,0.00033424,2]
[313116573,1706765436251,-500.0,0.00033424,2]
[313116574,1706765436261,-500.0,0.00033424,2]
[313116575,1706765436270,-500.0,0.00033424,2]
[313116576,1706765436280,-540.77,0.00033424,2]
[313116577,1706765436290,-500.0,0.00033424,2]
[313116578,1706765436299,-573.53,0.00033424,2]
[313116579,1706765436308,-1423.25,0.00033424,2]
[313116580,1706765436317,-500.0,0.00033424,2]
[313116581,1706765436327,-507.87,0.00033424,2]
[313116582,1706765436336,-500.0,0.00033424,2]
[313116583,1706765436346,-500.0,0.00033424,2]
[313116584,1706765436356,-703.04,0.00033424,2]
[313116585,1706765436366,-500.0,0.00033424,2]
[313116586,1706765436375,-648.87,0.00033424,2]
[313116587,1706765436385,-1345.19,0.00033424,2]
[313116588,1706765436394,-914.14,0.00033424,2]
[313116589,1706765436403,-500.0,0.00033424,2]
[313116590,1706765436413,-500.0,0.00033424,2]
[313116591,1706765436422,-500.0,0.00033424,2]
[313116592,1706765436432,-586.48,0.00033424,2]
[313116593,1706765436442,-592.9,0.00033424,2]
[313116594,1706765436451,-597.55,0.00033424,2]
[313116595,1706765436461,-744.0,0.00033424,2]
[313116596,1706765436470,-500.0,0.00033424,2]
[313116597,1706765436480,-828.31,0.00033424,2]
[313116598,1706765436490,-500.0,0.00033424,2]
[313116599,1706765436500,-1102.43,0.00033424,2]
[313116600,1706765436510,-636.41,0.00033424,2]
[313116601,1706765436519,-744.53,0.00033424,5]
[313116602,1706765436529,-500.0,0.00033424,2]
[313116603,1706765436539,-480.92460428,0.00033424,2]
[313116604,1706765436549,-15629.66,0.00033424,2]
[313116605,1706765436559,-1240.14,0.00033424,2]
[313116606,1706765436569,-500.0,0.00033424,2]
[313116607,1706765436578,-500.0,0.00033424,2]
[313116608,1706765436588,-500.0,0.00033424,2]
[313116609,1706765436598,-500.0,0.00033424,2]
[313116610,1706765436607,-500.0,0.00033424,2]
[313116611,1706765436618,-656.42,0.00033424,2]
[313116612,1706765436629,-665.68,0.00033424,2]
[313116613,1706765436638,-999.9,0.00033424,2]
[313116614,1706765436648,-925.77,0.00033424,2]
[313116615,1706765436658,-1119.8,0.00033424,2]
[313116616,1706765436667,-1292.06,0.00033424,2]
[313116617,1706765436677,-500.0,0.00033424,2]
[313116618,1706765436687,-500.0,0.00033424,2]
[313116619,1706765436698,-3982.31544621,0.00033431,2]
[313116620,1706765436708,-500.0,0.00033439,2]
[313116621,1706765436718,-629.27,0.00033439,2]
[313116622,1706765436728,-500.0,0.00033439,2]
[313116623,1706765436738,-1033.05,0.00033439,7]
[313116624,1706765436750,-500.0,0.00033439,2]
[313116625,1706765436760,-500.0,0.00033439,2]
[313116626,1706765436770,-500.0,0.00033439,2]
[313116627,1706765436781,-500.0,0.00033439,2]
[313116628,1706765436792,-500.0,0.00033439,2]
[313116629,1706765436802,-500.0,0.00033439,2]
[313116630,1706765436812,-500.0,0.00033439,2]
[313116631,1706765436822,-500.0,0.00033439,2]
[313116632,1706765436832,-500.0,0.00033439,2]
[313116633,1706765436842,-634.91491063,0.00033439,2]
[313116634,1706765436852,-500.0,0.00033439,2]
[313116635,1706765436863,-500.0,0.00033439,2]
[313116636,1706765436874,-500.0,0.00033439,2]
[313116637,1706765436884,-500.0,0.00033439,2]
[313116638,1706765436894,-500.0,0.00033439,2]
[313116639,1706765436908,-500.0,0.00033439,2]
[313116640,1706765436918,-500.0,0.00033439,2]
[313116641,1706765436928,-500.0,0.00033439,2]
[313116642,1706765436938,-500.0,0.00033439,2]
[313116643,1706765436949,-500.0,0.00033439,2]
[313116644,1706765436959,-462.1390048,0.00033439,2]
[313116645,1706765436969,-500.0,0.00033439,2]
[313116646,1706765436981,-519.65,0.00033439,2]
[313116647,1706765436991,-500.0,0.00033439,2]
[313116648,1706765437006,-1214.82,0.00033439,2]
[313116649,1706765437016,-500.0,0.00033439,2]
[313116650,1706765437026,-500.0,0.00033439,2]
[313116651,1706765437037,-500.0,0.00033439,2]
[313116652,1706765437047,-512.3,0.00033439,2]
[313116653,1706765437057,-640.98652385,0.00033439,2]
[313116654,1706765437067,-500.0,0.00033439,2]
[313116655,1706765437078,-500.0,0.00033439,2]
[313116656,1706765437089,-500.0,0.00033439,2]
[313116657,1706765437099,-500.0,0.00033439,2]
[313116658,1706765437109,-500.0,0.00033439,2]
[313116659,1706765437119,-500.0,0.00033439,2]
[313116660,1706765437129,-2357.69,0.00033439,2]
[313116661,1706765437139,-500.0,0.00033439,2]
[313116662,1706765437154,-500.0,0.00033439,2]
[313116663,1706765437164,-500.0,0.00033439,2]
[313116664,1706765437174,-519.29,0.00033439,2]
[313116665,1706765437185,-500.0,0.00033439,2]
[313116666,1706765437263,-500.0,0.00033439,2]
[313116667,1706765437272,-500.0,0.00033439,2]
[313116668,1706765437281,-562.78,0.00033439,2]
[313116669,1706765437290,-500.0,0.00033439,2]
[313116670,1706765437300,-500.0,0.00033439,2]
[313116671,1706765437309,-524.84,0.00033439,2]
[313116672,1706765437318,-500.0,0.00033439,2]
[313116673,1706765437327,-1000.0,0.00033439,7]
[313116674,1706765437337,-500.0,0.00033439,2]
[313116675,1706765437346,-500.0,0.00033439,2]
[313116676,1706765437356,-500.0,0.00033439,2]
[313116677,1706765437365,-1000.0,0.00033439,7]
[313116678,1706765437375,-500.0,0.00033439,2]
[313116679,1706765437384,-500.0,0.00033439,2]
[313116680,1706765437393,-500.0,0.00033439,2]
[313116681,1706765437402,-500.0,0.00033439,2]
[313116682,1706765437412,-500.0,0.00033439,2]
[313116683,1706765437421,-500.0,0.00033439,2]
[313116684,1706765437431,-500.0,0.00033439,2]
[313116685,1706765437441,-500.0,0.00033439,2]
[313116686,1706765437450,-1757.55,0.00033439,5]
[313116687,1706765437459,-292.59029103,0.00033439,2]
[313116689,1706765437469,-500.0,0.00033439,2]
[313116691,1706765437477,-698.57,0.00033439,2]
[313116693,1706765437487,-689.27,0.00033439,2]
[313116695,1706765437497,-500.0,0.00033439,2]
[313116697,1706765437506,-508.92,0.00033439,2]
[313116699,1706765437515,-537.02,0.00033439,2]
[313116701,1706765437524,-613.56,0.00033439,2]
[313116702,1706765437533,-500.0,0.00033439,2]
[313116703,1706765437542,-500.0,0.00033439,2]
[313116704,1706765437551,-500.0,0.00033461,2]
[313116705,1706765437560,-200.0,0.00033461,2]
[313116706,1706765437569,-218.22099409,0.00033476,2]
[313116707,1706765437582,-3982.31544621,0.00033494,2]
[313116708,1706765437591,-3982.31544621,0.00033557,2]
[313116709,1706765437600,-209.0,0.00033603,2]
[313116710,1706765437609,-3982.31544621,0.0003362,2]
[313116711,1706765437618,-218.22099409,0.00033674,2]
[313116712,1706765437628,-3982.31544621,0.00033683,2]
[313116713,1706765437637,-322.08847437,0.00033686,6]
[313116714,1706765437646,-35848.2809942,0.000337,2]
[313116715,1706765437655,-3982.31544621,0.00033746,2]
[313116716,1706765437665,-301.3,0.00033768,2]
[313116717,1706765437674,-3779.64637147,0.00033772,6]
[313116718,1706765437684,-17103.27360417,0.000338,2]
[313116719,1706765437738,-55062.81074161,0.000338,2]
[313116720,1706765437753,-893.71670212,0.000338,2]
[313116721,1706765437768,-1579.63504506,0.000338,2]
[313116722,1706765437779,-935.31158802,0.000338,2]
[313116723,1706765437791,-455.94522447,0.000338,2]
[313116724,1706765437802,-10974.99028053,0.000338,2]
[313116725,1706765437814,-745.35826249,0.000338,2]
[313116726,1706765437825,-853.71847551,0.000338,2]
[313116727,1706765437837,-852.59213198,0.000338,2]
[313116728,1706765437868,-300.96616691,0.000338,2]
[313116729,1706765437879,-971.44833825,0.000338,2]
[313116730,1706765437890,-307.14540002,0.000338,2]
[313116731,1706765437901,-578.53223834,0.000338,2]
[313116732,1706765437912,-895.65218245,0.000338,2]
[313116733,1706765437924,-7488.90361807,0.000338,2]
[313116734,1706765437933,-3982.31544621,0.00033809,2]
[313116735,1706765437942,-182130.4030344,0.00033862,3]
[313116736,1706765437953,-345.85363924,0.00033862,3]
[313116737,1706765437964,-348.90520871,0.00033862,3]
[313116738,1706765437975,-999.87426,0.00033862,3]
[313116739,1706765437986,-301.52504693,0.00033862,3]
[313116740,1706765438004,-2978.71663132,0.00033862,3]
[313116741,1706765438015,-572.78766273,0.00033862,3]
[313116742,1706765438026,-1766.89073922,0.00033862,3]
[313116842,1706765439503,-1274.69,0.00032666,10]
[313116844,1706765439513,-2062.98,0.00032876,2]
[313116846,1706765439524,-500.0,0.00032876,2]
[313116848,1706765439534,-500.0,0.00032876,2]
[313116850,1706765439544,-2062.98,0.00033424,2]
[313116852,1706765439554,-657.27914523,0.00033862,3]
[313116854,1706765439566,-51168.24238818,0.00033862,3]
[313116856,1706765439579,-31463.62667126,0.00033862,3]
[313116859,1706765439595,-41806.60482993,0.00033862,3]
[313116861,1706765439607,-616.01249581,0.00033862,3]
[313116877,1706765439810,-10331.81384446,0.00033862,3]
[313116879,1706765439822,-898.98004566,0.00033862,3]
[313116882,1706765439842,-2027.33882137,0.00033862,3]
[313116884,1706765439854,-1156.1043936,0.00033862,3]
[313116886,1706765439866,-281.55,0.00033862,3]
[313116888,1706765439878,-2231.28056459,0.00033862,3]
[313116890,1706765439889,-1840.01178555,0.00033862,3]
[313116893,1706765439910,-1028.44487161,0.00033862,3]
[313116895,1706765439922,-417.121379,0.00033862,3]
[313116897,1706765439933,-1901.93818395,0.00033862,3]
[313116900,1706765439945,-869.57322028,0.00033862,3]
[313116902,1706765439957,-865.32415227,0.00033862,3]
[313116904,1706765439968,-370.9210067,0.00033862,3]
[313116907,1706765439989,-8755.75673195,0.00033862,3]
[313116967,1706765440389,-913.46617481,0.00033862,3]
[313116969,1706765440401,-934.45643808,0.00033862,3]
[313116972,1706765440414,-2148.12924105,0.00033862,3]
[313117040,1706765440942,-500.0,0.00032891,2]
[313117042,1706765440952,-500.0,0.00033439,2]
[313117044,1706765440961,-115040.43420246,0.00033862,3]
[313117046,1706765440973,-765.17472663,0.00033862,3]
[313117050,1706765441003,-62784.74956801,0.00033862,3]
[313117052,1706765441014,-1435.59597975,0.00033862,3]
[313117209,1706765442568,-625.29,0.00032876,2]
[313117210,1706765442579,-7.84267263,0.00032876,2]
[313117211,1706765442592,-393.59968601,0.00032876,2]
[313117212,1706765442605,-98.55764136,0.00032876,2]
[313117213,1706765442616,-253.16,0.00033045,2]
[313117214,1706765442626,-625.29,0.00033424,2]
[313117215,1706765442635,-316.78402769,0.0003379,10]
[313117216,1706765442652,-745.45597231,0.0003379,10]
[313117217,1706765442662,-262.54014948,0.00033862,3]
[313117218,1706765442674,-6055.1715,0.00033862,3]
[313117219,1706765442687,-2172.25771036,0.00033862,3]
[313117220,1706765442703,-338.20311739,0.00033862,3]
[313117221,1706765442716,-926.38502705,0.00033862,3]
[313117222,1706765442728,-6855.90067227,0.00033862,3]
[313117223,1706765442763,-500.0,0.00032876,2]
[313117224,1706765442773,-415.21587112,0.00033862,3]